fUST/lending_fUST_20250408
["ID","MTS","AMOUNT","RATE_DAILY","PERIOD"]
[357482217,1744080667749,-627.08000001,0.00028219,2]
[357482218,1744080667759,-1335.62707285,0.00028219,2]
[357482219,1744080667769,-1000.0,0.00028303,5]
[357482220,1744080667780,-1000.0,0.00028327,5]
[357482221,1744080667790,-1000.0,0.00028327,5]
[357482222,1744080667800,-1000.0,0.00028327,5]
[357482223,1744080667810,-390.1040898,0.00028327,5]
[357482224,1744080667820,-1000.0,0.00028327,5]
[357482225,1744080667831,-1000.0,0.00028327,5]
[357482226,1744080667841,-329.41932743,0.00028349,2]
[357482227,1744080667850,-150.08,0.00028493,2]
[357482228,1744080667860,-152.14879173,0.00028493,2]
[357482229,1744080667870,-168.0,0.00028493,2]
[357482230,1744080667880,-168.0,0.00028493,2]
[357482231,1744080667889,-288.9796707,0.00028493,2]
[357482232,1744080667899,-200.26335765,0.00028493,2]
[357482233,1744080667909,-150.64941332,0.00028493,2]
[357482234,1744080667919,-151.4220277,0.00028493,2]
[357482235,1744080667928,-150.1214324,0.00028493,2]
[357482236,1744080667939,-154.25110152,0.00028493,2]
[357482237,1744080667949,-156.01287585,0.00028493,2]
[357482238,1744080667960,-150.08,0.00028493,2]
[357482239,1744080667972,-150.08,0.00028493,2]
[357482240,1744080667982,-200.0,0.00028767,2]
[357482241,1744080667992,-642.29801452,0.00028779,5]
[357482242,1744080668002,-304.70270583,0.00028779,5]
[357482243,1744080668222,-150.08,0.00029041,2]
[357482244,1744080668232,-150.08,0.00029041,2]
[357482245,1744080668243,-150.08,0.00029041,2]
[357482246,1744080668254,-150.80368867,0.00029589,2]
[357482247,1744080668265,-155.07343014,0.00029589,2]
[357482248,1744080668275,-150.45591522,0.00029589,2]
[357482249,1744080668287,-155.12168338,0.0003,2]
[357482250,1744080668298,-153.70153521,0.0003,10]
[357482251,1744080668309,-1000.66,0.0003,2]
[357482252,1744080668319,-1387.17015603,0.0003,7]
[357482253,1744080668330,-2000.0,0.0003,4]
[357482254,1744080668341,-153.20736973,0.00030136,2]
[357482255,1744080668352,-1000.0,0.00030152,5]
[357482256,1744080668363,-1006.5078414,0.00030152,5]
[357482257,1744080668374,-1000.0,0.00030152,5]
[357482258,1744080668384,-392.19866,0.00030808,2]
[357482259,1744080668395,-1492.28471196,0.00030983,2]
[357482260,1744080668421,-501.55578929,0.00031424,5]
[357482261,1744080668434,-598.35081077,0.00031424,5]
[357482262,1744080668447,-205.27607404,0.00031424,5]
[357482263,1744080668458,-179.92802879,0.00031762,7]
[357482264,1744080668469,-150.584,0.0003256,2]
[357482265,1744080668480,-546.169,0.0003256,2]
[357482266,1744080668491,-2254.0,0.0003256,2]
[357482267,1744080668502,-160.0,0.00032615,3]
[357482268,1744080668513,-1000.0,0.00032877,5]
[357482269,1744080668524,-160.0,0.00033205,4]
[357482270,1744080668541,-160.0,0.00033796,5]
[357482271,1744080668551,-500.0,0.00034064,7]
[357482272,1744080668563,-2200.0,0.00034064,7]
[357482273,1744080668575,-369.75933146,0.000341,7]
[357482274,1744080668946,-8025.0,0.00021417,2]
[357482284,1744081654103,-196.09933,0.00020563,2]
[357482285,1744081654128,-209.23495393,0.00020773,2]
[357482287,1744081774090,-300.0,0.00020773,2]
[357482288,1744081774115,-9189.51637261,0.00020774,2]
[357482291,1744081832660,-225.0,0.00020773,2]
[357482292,1744081832670,-2315.97473734,0.00020774,2]
[357482293,1744081832683,-2750.0,0.00020774,2]
[357482294,1744081832695,-4450.0,0.00020774,2]
[357482295,1744081832766,-2408.37043815,0.00020774,2]
[357482296,1744081832777,-200.0,0.00021404,2]
[357482297,1744081832787,-500.0,0.00021416,2]
[357482298,1744081832798,-500.0,0.00021416,2]
[357482299,1744081832808,-500.0,0.00021416,2]
[357482300,1744081832818,-500.0,0.00021416,2]
[357482301,1744081832830,-285.51498955,0.00021416,2]
[357482302,1744081832842,-500.0,0.00021416,2]
[357482303,1744081832852,-500.0,0.00021416,2]
[357482304,1744081832862,-500.0,0.00021416,2]
[357482305,1744081832872,-270.17680468,0.00021416,2]
[357482306,1744081832884,-229.82319532,0.00021416,2]
[357482307,1744081832894,-235.20180779,0.00021416,2]
[357482308,1744081832904,-500.0,0.00021416,2]
[357482309,1744081832914,-812.35055078,0.00021417,2]
[357482322,1744081838864,-361162.64944922,0.00021417,2]
[357482323,1744081838874,-218.4776538,0.00021716,2]
[357482324,1744081838884,-500.0,0.00021917,2]
[357482325,1744081838894,-500.0,0.00021917,2]
[357482326,1744081838903,-500.0,0.00021917,2]
[357482327,1744081838913,-500.0,0.00021917,2]
[357482328,1744081838923,-500.0,0.00021917,2]
[357482329,1744081838937,-500.0,0.00021917,2]
[357482330,1744081838947,-500.0,0.00021917,2]
[357482332,1744081838957,-500.0,0.00021917,2]
[357482333,1744081838966,-500.0,0.00021917,2]
[357482334,1744081838976,-500.0,0.00021917,2]
[357482335,1744081838986,-500.0,0.00021917,2]
[357482336,1744081838996,-500.0,0.00021917,2]
[357482337,1744081839006,-500.0,0.00021917,2]
[357482338,1744081839017,-500.0,0.00021917,2]
[357482339,1744081839028,-500.0,0.00021917,2]
[357482340,1744081839038,-500.0,0.00021917,2]
[357482341,1744081839050,-500.0,0.00021917,2]
[357482342,1744081839060,-500.0,0.00021917,2]
[357482343,1744081839070,-500.0,0.00021917,2]
[357482344,1744081839080,-200.0,0.00021917,2]
[357482345,1744081839090,-2803.81,0.00021917,2]
[357482346,1744081839100,-500.0,0.00021917,2]
[357482347,1744081839110,-573.47850502,0.00021917,2]
[357482348,1744081839119,-500.0,0.00021917,2]
[357482349,1744081839129,-500.0,0.00021917,2]
[357482350,1744081839139,-500.0,0.00021917,2]
[357482351,1744081839148,-500.0,0.00021917,2]
[357482352,1744081839158,-500.0,0.00021917,2]
[357482353,1744081839167,-500.0,0.00021917,2]
[357482354,1744081839177,-500.0,0.00021917,2]
[357482355,1744081839186,-500.0,0.00021917,2]
[357482356,1744081839196,-500.0,0.00021917,2]
[357482357,1744081839206,-509.66325737,0.00021917,2]
[357482358,1744081839216,-500.0,0.00021917,2]
[357482359,1744081839225,-500.0,0.00021917,2]
[357482360,1744081839235,-500.0,0.00021917,2]
[357482361,1744081839246,-500.0,0.00021917,2]
[357482362,1744081839256,-500.0,0.00021917,2]
[357482363,1744081839266,-500.0,0.00021917,2]
[357482364,1744081839276,-500.0,0.00021917,2]
[357482365,1744081839286,-500.0,0.00021917,2]
[357482366,1744081839296,-500.0,0.00021917,2]
[357482367,1744081839307,-500.0,0.00021917,2]
[357482368,1744081839317,-500.0,0.00021917,2]
[357482369,1744081839327,-500.0,0.00021917,2]
[357482370,1744081839337,-513.52426748,0.00021917,2]
[357482371,1744081839347,-500.0,0.00021917,2]
[357482372,1744081839357,-500.0,0.00021917,2]
[357482373,1744081839367,-500.0,0.00021917,2]
[357482374,1744081839378,-500.0,0.00021917,2]
[357482375,1744081839388,-500.0,0.00021917,2]
[357482376,1744081839397,-968.81,0.00021917,2]
[357482377,1744081839407,-500.47,0.00021917,2]
[357482378,1744081839416,-500.0,0.00021917,2]
[357482379,1744081839426,-500.0,0.00021917,2]
[357482380,1744081839436,-500.0,0.00021917,2]
[357482381,1744081839446,-500.0,0.00021917,2]
[357482382,1744081839455,-500.0,0.00021917,2]
[357482383,1744081839466,-809.84,0.00021917,2]
[357482384,1744081839475,-500.0,0.00021917,2]
[357482385,1744081839486,-491.32629685,0.00021917,2]
[357482386,1744081839495,-518.98233638,0.00021917,2]
[357482387,1744081839505,-510.90305997,0.00021917,2]
[357482388,1744081839515,-764.08,0.00021917,2]
[357482389,1744081839525,-500.0,0.00021917,2]
[357482390,1744081839535,-500.0,0.00021917,2]
[357482391,1744081839545,-500.0,0.00021917,2]
[357482392,1744081839555,-500.0,0.00021917,2]
[357482393,1744081839565,-500.0,0.00021917,2]
[357482394,1744081839574,-500.0,0.00021917,2]
[357482395,1744081839584,-500.0,0.00021917,2]
[357482396,1744081839594,-500.0,0.00021917,2]
[357482397,1744081839604,-500.0,0.00021917,2]
[357482398,1744081839614,-511.46,0.00021917,2]
[357482399,1744081839624,-500.0,0.00021917,2]
[357482400,1744081839634,-500.0,0.00021917,2]
[357482401,1744081839644,-507.97008993,0.00021917,2]
[357482402,1744081839655,-500.0,0.00021917,2]
[357482403,1744081839664,-921.48,0.00021917,2]
[357482404,1744081839674,-550.16,0.00021917,2]
[357482405,1744081839683,-500.0,0.00021917,2]
[357482406,1744081839694,-500.0,0.00021917,2]
[357482407,1744081839703,-500.0,0.00021917,2]
[357482408,1744081839713,-500.0,0.00021917,2]
[357482409,1744081839722,-930.44,0.00021917,2]
[357482410,1744081839732,-647.67,0.00021917,2]
[357482411,1744081839742,-500.0,0.00021917,2]
[357482412,1744081839752,-500.0,0.00021917,2]
[357482413,1744081839762,-500.0,0.00021917,2]
[357482414,1744081839771,-500.0,0.00021917,2]
[357482415,1744081839781,-500.0,0.00021917,2]
[357482416,1744081839791,-418.88309529,0.00021917,2]
[357482417,1744081839801,-466.67446106,0.00021917,2]
[357482418,1744081839810,-500.0,0.00021917,2]
[357482419,1744081839821,-500.0,0.00021917,2]
[357482420,1744081839830,-500.0,0.00021917,2]
[357482421,1744081839840,-401.47142844,0.00021917,2]
[357482422,1744081839850,-500.0,0.00021917,2]
[357482423,1744081839859,-500.0,0.00021917,2]
[357482424,1744081839869,-500.0,0.00021917,2]
[357482425,1744081839879,-500.0,0.00021917,2]
[357482426,1744081839889,-556.88,0.00021917,2]
[357482427,1744081839899,-500.0,0.00021917,2]
[357482428,1744081839908,-500.0,0.00021917,2]
[357482429,1744081839918,-530.09526081,0.00021917,2]
[357482430,1744081839927,-500.0,0.00021917,2]
[357482431,1744081839937,-819.25,0.00021917,2]
[357482432,1744081839948,-500.0,0.00021917,2]
[357482433,1744081839959,-319.30812002,0.00021917,2]
[357482434,1744081839976,-500.0,0.00021917,2]
[357482435,1744081839986,-500.0,0.00021917,2]
[357482436,1744081839996,-500.0,0.00021917,2]
[357482437,1744081840006,-500.0,0.00021917,2]
[357482438,1744081840016,-500.0,0.00021917,2]
[357482439,1744081840025,-512.01244241,0.00021917,2]
[357482440,1744081840036,-789.79,0.00021917,2]
[357482441,1744081840045,-1688.2,0.00021917,2]
[357482442,1744081840054,-500.0,0.00021917,2]
[357482443,1744081840064,-500.0,0.00021917,2]
[357482444,1744081840074,-500.0,0.00021917,2]
[357482445,1744081840083,-500.0,0.00021917,2]
[357482446,1744081840093,-1342.25,0.00021917,2]
[357482447,1744081840102,-500.0,0.00021917,2]
[357482448,1744081840112,-500.0,0.00021917,2]
[357482450,1744081840121,-500.0,0.00021917,2]
[357482451,1744081840131,-500.0,0.00021917,2]
[357482452,1744081840140,-958.86,0.00021917,2]
[357482453,1744081840150,-1653.17,0.00021917,2]
[357482454,1744081840160,-500.0,0.00021917,2]
[357482455,1744081840169,-500.0,0.00021917,2]
[357482456,1744081840178,-2115.74,0.00021917,2]
[357482457,1744081840188,-332.1388542,0.00021917,2]
[357482458,1744081840197,-1255.28,0.00021917,2]
[357482459,1744081840207,-912.84,0.00021917,2]
[357482460,1744081840217,-500.0,0.00021917,2]
[357482461,1744081840227,-500.0,0.00021917,2]
[357482462,1744081840237,-500.0,0.00021917,2]
[357482463,1744081840247,-500.0,0.00021917,2]
[357482464,1744081840257,-515.31,0.00021917,2]
[357482465,1744081840267,-500.0,0.00021917,2]
[357482466,1744081840277,-500.0,0.00021917,2]
[357482467,1744081840288,-828.11,0.00021917,2]
[357482468,1744081840299,-500.0,0.00021917,2]
[357482469,1744081840310,-522.7,0.00021917,2]
[357482470,1744081840319,-665.53,0.00021917,2]
[357482471,1744081840331,-500.0,0.00021917,2]
[357482472,1744081840340,-500.0,0.00021917,2]
[357482473,1744081840350,-629.28533387,0.00021917,2]
[357482474,1744081840360,-500.0,0.00021917,2]
[357482475,1744081840370,-500.0,0.00021917,2]
[357482476,1744081840382,-592.81,0.00021917,2]
[357482477,1744081840392,-1007.96,0.00021917,2]
[357482478,1744081840402,-500.0,0.00021917,2]
[357482479,1744081840412,-1513.92,0.00021917,2]
[357482480,1744081840422,-500.0,0.00021917,2]
[357482481,1744081840431,-500.0,0.00021917,2]
[357482482,1744081840441,-1267.41,0.00021917,2]
[357482483,1744081840452,-500.0,0.00021917,2]
[357482484,1744081840462,-1030.35,0.00021917,2]
[357482485,1744081840473,-500.0,0.00021917,2]
[357482486,1744081840483,-500.0,0.00021917,2]
[357482487,1744081840493,-500.0,0.00021917,2]
[357482488,1744081840505,-500.0,0.00021917,2]
[357482489,1744081840515,-500.0,0.00021917,2]
[357482490,1744081840526,-500.0,0.00021917,2]
[357482492,1744081840536,-4108.07,0.00021917,2]
[357482493,1744081840546,-500.0,0.00021917,2]
[357482494,1744081840556,-500.0,0.00021917,2]
[357482495,1744081840566,-500.0,0.00021917,2]
[357482496,1744081840575,-1082.33,0.00021917,2]
[357482497,1744081840586,-500.0,0.00021917,2]
[357482498,1744081840597,-500.0,0.00021917,2]
[357482499,1744081840607,-543.95,0.00021917,2]
[357482500,1744081840617,-500.0,0.00021917,2]
[357482501,1744081840627,-500.0,0.00021917,2]
[357482502,1744081840637,-500.0,0.00021917,2]
[357482503,1744081840647,-1330.51,0.00021917,2]
[357482504,1744081840657,-500.0,0.00021917,2]
[357482505,1744081840667,-500.0,0.00021917,2]
[357482506,1744081840677,-1439.3,0.00021917,2]
[357482507,1744081840687,-500.0,0.00021917,2]
[357482509,1744081840696,-961.73,0.00021917,2]
[357482510,1744081840706,-836.08,0.00021917,2]
[357482511,1744081840716,-1141.15,0.00021917,2]
[357482512,1744081840726,-1514.49,0.00021917,2]
[357482513,1744081840736,-792.22,0.00021917,2]
[357482514,1744081840746,-500.0,0.00021917,2]
[357482515,1744081840755,-2372.07,0.00021917,2]
[357482516,1744081840765,-500.0,0.00021917,2]
[357482517,1744081840774,-500.0,0.00021917,2]
[357482518,1744081840784,-500.0,0.00021917,2]
[357482519,1744081840794,-910.81,0.00021917,2]
[357482521,1744081840803,-500.0,0.00021917,2]
[357482523,1744081840813,-500.0,0.00021917,2]
[357482524,1744081840823,-1896.06,0.00021917,2]
[357482525,1744081840833,-1257.28,0.00021917,2]
[357482526,1744081840842,-500.0,0.00021917,2]
[357482527,1744081840852,-866.78,0.00021917,2]
[357482528,1744081840862,-500.0,0.00021917,2]
[357482529,1744081840871,-500.0,0.00021917,2]
[357482530,1744081840881,-500.0,0.00021917,2]
[357482531,1744081840890,-500.0,0.00021917,2]
[357482532,1744081840899,-500.0,0.00021917,2]
[357482533,1744081840909,-884.67,0.00021917,2]
[357482534,1744081840919,-500.0,0.00021917,2]
[357482535,1744081840928,-1740.48,0.00021917,2]
[357482537,1744081840938,-500.0,0.00021917,2]
[357482539,1744081840947,-500.0,0.00021917,2]
[357482541,1744081840957,-500.0,0.00021917,2]
[357482543,1744081840967,-500.0,0.00021917,2]
[357482545,1744081840977,-536.56,0.00021917,2]
[357482547,1744081840987,-969.19,0.00021917,2]
[357482549,1744081840996,-500.0,0.00021917,2]
[357482551,1744081841007,-500.0,0.00021917,2]
[357482553,1744081841016,-1688.58,0.00021917,2]
[357482555,1744081841026,-954.3,0.00021917,2]
[357482557,1744081841035,-500.0,0.00021917,2]
[357482559,1744081841045,-1338.67,0.00021917,2]
[357482561,1744081841054,-500.0,0.00021917,2]
[357482563,1744081841064,-500.0,0.00021917,2]
[357482565,1744081841074,-500.0,0.00021917,2]
[357482567,1744081841084,-500.0,0.00021917,2]
[357482569,1744081841095,-500.0,0.00021917,2]
[357482572,1744081841105,-6846.45,0.00021917,2]
[357482574,1744081841115,-500.0,0.00021917,2]
[357482576,1744081841125,-500.0,0.00021917,2]
[357482577,1744081841134,-653.14,0.00021917,2]
[357482579,1744081841144,-500.0,0.00021917,2]
[357482582,1744081841155,-500.0,0.00021917,2]
[357482583,1744081841164,-500.0,0.00021917,2]
[357482585,1744081841174,-500.0,0.00021917,2]
[357482588,1744081841184,-377.07719113,0.00021917,2]
[357482590,1744081841193,-500.0,0.00021917,2]
[357482592,1744081841203,-352.70119875,0.00021917,2]
[357482594,1744081841212,-1391.18,0.00021917,2]
[357482596,1744081841222,-500.0,0.00021917,2]
[357482598,1744081841231,-1149.97,0.00021917,2]
[357482601,1744081841241,-500.0,0.00021917,2]
[357482603,1744081841252,-218.47765379,0.00022084,2]
[357482605,1744081841262,-500.0,0.00022191,2]
[357482607,1744081841272,-500.0,0.00022191,2]
[357482609,1744081841281,-500.0,0.00022191,2]
[357482611,1744081841295,-500.0,0.00022191,2]
[357482612,1744081841304,-500.0,0.00022191,2]
[357482614,1744081841314,-500.0,0.00022191,2]
[357482615,1744081841324,-500.0,0.00022191,2]
[357482616,1744081841335,-500.0,0.00022191,2]
[357482617,1744081841346,-500.0,0.00022191,2]
[357482618,1744081841356,-500.0,0.00022191,2]
[357482619,1744081841366,-500.0,0.00022191,2]
[357482620,1744081841377,-500.0,0.00022191,2]
[357482621,1744081841389,-500.0,0.00022191,2]
[357482622,1744081841399,-500.0,0.00022191,2]
[357482623,1744081841409,-500.0,0.00022191,2]
[357482624,1744081841419,-501.8282301,0.00022191,2]
[357482625,1744081841429,-500.0,0.00022191,2]
[357482626,1744081841439,-500.0,0.00022191,2]
[357482627,1744081841449,-500.0,0.00022191,2]
[357482628,1744081841459,-2803.81,0.00022191,2]
[357482629,1744081841468,-500.0,0.00022191,2]
[357482630,1744081841477,-500.0,0.00022191,2]
[357482631,1744081841487,-500.1809741,0.00022191,2]
[357482632,1744081841497,-500.0,0.00022191,2]
[357482633,1744081841508,-500.0,0.00022191,2]
[357482634,1744081841518,-500.0,0.00022191,2]
[357482635,1744081841528,-500.0,0.00022191,2]
[357482636,1744081841538,-500.0,0.00022191,2]
[357482637,1744081841549,-500.0,0.00022191,2]
[357482638,1744081841558,-500.0,0.00022191,2]
[357482640,1744081841568,-528.24011418,0.00022191,2]
[357482641,1744081841577,-500.0,0.00022191,2]
[357482642,1744081841586,-500.0,0.00022191,2]
[357482643,1744081841596,-500.0,0.00022191,2]
[357482645,1744081841607,-500.0,0.00022191,2]
[357482646,1744081841616,-152.04184998,0.00022191,2]
[357482647,1744081841625,-500.0,0.00022191,2]
[357482648,1744081841634,-500.0,0.00022191,2]
[357482649,1744081841644,-500.0,0.00022191,2]
[357482650,1744081841653,-500.0,0.00022191,2]
[357482651,1744081841663,-500.0,0.00022191,2]
[357482652,1744081841672,-500.0,0.00022191,2]
[357482653,1744081841681,-500.0,0.00022191,2]
[357482654,1744081841690,-500.0,0.00022191,2]
[357482655,1744081841700,-500.0,0.00022191,2]
[357482656,1744081841709,-500.0,0.00022191,2]
[357482657,1744081841719,-968.81,0.00022191,2]
[357482658,1744081841728,-500.47,0.00022191,2]
[357482659,1744081841738,-500.0,0.00022191,2]
[357482660,1744081841747,-500.0,0.00022191,2]
[357482661,1744081841756,-500.0,0.00022191,2]
[357482662,1744081841766,-500.0,0.00022191,2]
[357482663,1744081841775,-500.0,0.00022191,2]
[357482664,1744081841785,-809.84,0.00022191,2]
[357482665,1744081841795,-500.0,0.00022191,2]
[357482666,1744081841804,-764.08,0.00022191,2]
[357482667,1744081841814,-500.0,0.00022191,2]
[357482668,1744081841823,-500.0,0.00022191,2]
[357482669,1744081841833,-500.0,0.00022191,2]
[357482670,1744081841842,-500.0,0.00022191,2]
[357482671,1744081841852,-500.0,0.00022191,2]
[357482672,1744081841862,-500.0,0.00022191,2]
[357482673,1744081841871,-500.0,0.00022191,2]
[357482674,1744081841880,-500.0,0.00022191,2]
[357482675,1744081841889,-500.0,0.00022191,2]
[357482676,1744081841898,-511.46,0.00022191,2]
[357482677,1744081841908,-287.45188397,0.00022191,2]
[357482678,1744081841917,-500.0,0.00022191,2]
[357482679,1744081841926,-500.0,0.00022191,2]
[357482680,1744081841936,-550.16,0.00022191,2]
[357482681,1744081841945,-921.48,0.00022191,2]
[357482682,1744081841954,-500.0,0.00022191,2]
[357482683,1744081841965,-500.0,0.00022191,2]
[357482684,1744081841975,-500.0,0.00022191,2]
[357482685,1744081841984,-500.0,0.00022191,2]
[357482686,1744081841994,-930.44,0.00022191,2]
[357482687,1744081842003,-647.67,0.00022191,2]
[357482688,1744081842013,-500.0,0.00022191,2]
[357482689,1744081842023,-512.33678944,0.00022191,2]
[357482690,1744081842032,-274.20639669,0.00022191,2]
[357482691,1744081842041,-500.0,0.00022191,2]
[357482692,1744081842051,-500.0,0.00022191,2]
[357482693,1744081842061,-500.0,0.00022191,2]
[357482694,1744081842071,-500.0,0.00022191,2]
[357482695,1744081842080,-599.08557868,0.00022191,2]
[357482696,1744081842089,-500.0,0.00022191,2]
[357482697,1744081842099,-500.0,0.00022191,2]
[357482698,1744081842109,-500.0,0.00022191,2]
[357482699,1744081842118,-500.0,0.00022191,2]
[357482700,1744081842128,-556.88,0.00022191,2]
[357482701,1744081842138,-500.0,0.00022191,2]
[357482702,1744081842148,-500.0,0.00022191,2]
[357482703,1744081842158,-500.0,0.00022191,2]
[357482704,1744081842167,-819.25,0.00022191,2]
[357482705,1744081842177,-500.0,0.00022191,2]
[357482707,1744081842187,-500.0,0.00022191,2]
[357482708,1744081842197,-500.0,0.00022191,2]
[357482710,1744081842207,-500.0,0.00022191,2]
[357482712,1744081842217,-500.0,0.00022191,2]
[357482713,1744081842227,-500.0,0.00022191,2]
[357482715,1744081842237,-789.79,0.00022191,2]
[357482716,1744081842247,-1688.2,0.00022191,2]
[357482717,1744081842257,-500.0,0.00022191,2]
[357482718,1744081842267,-500.0,0.00022191,2]
[357482719,1744081842276,-500.0,0.00022191,2]
[357482720,1744081842287,-1342.25,0.00022191,2]
[357482721,1744081842302,-500.0,0.00022191,2]
[357482722,1744081842312,-500.0,0.00022191,2]
[357482723,1744081842322,-500.0,0.00022191,2]
[357482724,1744081842332,-500.0,0.00022191,2]
[357482725,1744081842342,-500.0,0.00022191,2]
[357482726,1744081842353,-958.86,0.00022191,2]
[357482727,1744081842364,-1653.17,0.00022191,2]
[357482728,1744081842374,-500.0,0.00022191,2]
[357482729,1744081842384,-500.0,0.00022191,2]
[357482730,1744081842394,-2115.74,0.00022191,2]
[357482731,1744081842404,-1255.28,0.00022191,2]
[357482732,1744081842415,-912.84,0.00022191,2]
[357482733,1744081842424,-500.0,0.00022191,2]
[357482734,1744081842434,-500.0,0.00022191,2]
[357482735,1744081842444,-500.0,0.00022191,2]
[357482736,1744081842455,-500.0,0.00022191,2]
[357482737,1744081842466,-515.31,0.00022191,2]
[357482738,1744081842476,-500.0,0.00022191,2]
[357482739,1744081842486,-500.0,0.00022191,2]
[357482740,1744081842496,-828.11,0.00022191,2]
[357482741,1744081842506,-522.7,0.00022191,2]
[357482742,1744081842515,-500.0,0.00022191,2]
[357482743,1744081842526,-665.53,0.00022191,2]
[357482744,1744081842536,-500.0,0.00022191,2]
[357482745,1744081842546,-500.0,0.00022191,2]
[357482746,1744081842556,-500.0,0.00022191,2]
[357482747,1744081842565,-500.0,0.00022191,2]
[357482748,1744081842575,-592.81,0.00022191,2]
[357482749,1744081842584,-1007.96,0.00022191,2]
[357482750,1744081842593,-500.0,0.00022191,2]
[357482751,1744081842603,-1513.92,0.00022191,2]
[357482752,1744081842613,-500.0,0.00022191,2]
[357482753,1744081842624,-500.0,0.00022191,2]
[357482754,1744081842633,-1267.41,0.00022191,2]
[357482755,1744081842643,-500.0,0.00022191,2]
[357482756,1744081842654,-1030.35,0.00022191,2]
[357482757,1744081842663,-500.0,0.00022191,2]
[357482758,1744081842673,-500.0,0.00022191,2]
[357482759,1744081842682,-500.0,0.00022191,2]
[357482760,1744081842691,-500.0,0.00022191,2]
[357482761,1744081842701,-500.0,0.00022191,2]
[357482762,1744081842711,-4108.07,0.00022191,2]
[357482763,1744081842892,-500.0,0.00022191,2]
[357482764,1744081842903,-500.0,0.00022191,2]
[357482765,1744081842915,-500.0,0.00022191,2]
[357482766,1744081842930,-1082.33,0.00022191,2]
[357482767,1744081842940,-500.0,0.00022191,2]
[357482768,1744081842951,-500.0,0.00022191,2]
[357482769,1744081842961,-543.95,0.00022191,2]
[357482770,1744081842971,-500.0,0.00022191,2]
[357482771,1744081842981,-500.0,0.00022191,2]
[357482772,1744081842991,-500.0,0.00022191,2]
[357482773,1744081843001,-1330.51,0.00022191,2]
[357482774,1744081843011,-500.0,0.00022191,2]
[357482775,1744081843020,-500.0,0.00022191,2]
[357482776,1744081843031,-1439.3,0.00022191,2]
[357482777,1744081843041,-500.0,0.00022191,2]
[357482778,1744081843051,-961.73,0.00022191,2]
[357482780,1744081843060,-836.08,0.00022191,2]
[357482782,1744081843070,-1141.15,0.00022191,2]
[357482783,1744081843079,-1514.49,0.00022191,2]
[357482784,1744081843088,-792.22,0.00022191,2]
[357482785,1744081843099,-515.66099596,0.00022191,2]
[357482786,1744081843108,-2372.07,0.00022191,2]
[357482787,1744081843118,-500.0,0.00022191,2]
[357482788,1744081843128,-500.0,0.00022191,2]
[357482789,1744081843138,-500.0,0.00022191,2]
[357482790,1744081843148,-910.81,0.00022191,2]
[357482791,1744081843158,-500.0,0.00022191,2]
[357482793,1744081843168,-500.0,0.00022191,2]
[357482794,1744081843178,-1896.06,0.00022191,2]
[357482795,1744081843188,-1257.28,0.00022191,2]